fUST/lending_fUST_20241031
["ID","MTS","AMOUNT","RATE_DAILY","PERIOD"]
[341063604,1730315447024,-12306.0,0.0003375,2]
[341063605,1730315447034,-1501.35077189,0.00033835,3]
[341063606,1730315447044,-261.0,0.000339,9]
[341063607,1730315447053,-168.63446517,0.00033912,2]
[341063608,1730315447064,-255.53,0.0003399,3]
[341063609,1730315447074,-766.61,0.0003399,3]
[341063610,1730315447093,-1000.0,0.00034,2]
[341063611,1730315447103,-532.04627152,0.00034,5]
[341063612,1730315447113,-150.112233,0.00034,12]
[341063613,1730315447122,-153.0,0.00034008,2]
[341063614,1730315447133,-153.0,0.00034008,2]
[341063615,1730315447144,-153.0,0.00034008,2]
[341063616,1730315447153,-576.31769624,0.00034053,2]
[341063617,1730315447165,-489.03,0.00034123,10]
[341063618,1730315447176,-407.52,0.00034123,10]
[341063619,1730315447185,-586.84,0.00034124,10]
[341063620,1730315447195,-983.24,0.00034133,2]
[341063621,1730315447205,-983.24,0.00034133,2]
[341063622,1730315447214,-983.24,0.00034133,2]
[341063623,1730315447224,-983.24,0.00034133,2]
[341063624,1730315447233,-673.94498891,0.00034133,2]
[341063627,1730315709624,189.274724,0.00013973,2]
[341063628,1730315710078,189.274724,0.00020447,2]
[341063629,1730316216130,157.5180747,0.00013973,2]
[341063631,1730316332123,-250.34825633,0.00024658,2]
[341063632,1730316332147,-189.274724,0.00026921,2]
[341063633,1730316332169,-184.48564,0.00027985,2]
[341063634,1730316332193,-179.704589,0.00028204,2]
[341063635,1730316332215,-184.48564,0.00029355,2]
[341063636,1730316332241,-179.704589,0.00029674,2]
[341063637,1730316332267,-583.29109693,0.0002978,2]
[341063639,1730316545110,-300.0,0.00021999,2]
[341063640,1730316545134,-300.0,0.00021999,2]
[341063641,1730316545156,-574.65376751,0.00022,2]
[341063642,1730316550115,-18813.42320429,0.00022,2]
[341063643,1730316550136,-420.0,0.00023906,2]
[341063644,1730316550157,-420.0,0.00024199,2]
[341063645,1730316550179,-312.31,0.0002499,10]
[341063646,1730316550200,-260.26,0.0002499,10]
[341063647,1730316550220,-21358.45725617,0.00025,2]
[341063648,1730316562134,-21027.67530942,0.00025,2]
[341063649,1730316568083,-244.18,0.0002499,10]
[341063650,1730316568104,-121700.50815226,0.00025,2]
[341063651,1730316571099,-169.34,0.0002499,3]
[341063652,1730316571120,-619.96928919,0.00025,2]
[341063689,1730316632727,-300.0,0.00024999,2]
[341063691,1730316632738,-578.46239182,0.00025,2]
[341063693,1730316632747,-43152.60642626,0.00025,2]
[341063694,1730316632756,-338.68,0.0002636,3]
[341063695,1730316632765,-151.0,0.00027499,2]
[341063696,1730316632774,-3000.0,0.000298,2]
[341063697,1730316632784,-3000.0,0.0002981,2]
[341063698,1730316632794,-3000.0,0.0002982,2]
[341063699,1730316632804,-3000.0,0.0002983,2]
[341063700,1730316632814,-5000.0,0.00029836,2]
[341063701,1730316632824,-3000.0,0.0002984,2]
[341063702,1730316632833,-3000.0,0.0002985,2]
[341063703,1730316632845,-3000.0,0.0002986,2]
[341063704,1730316632855,-3000.0,0.0002987,2]
[341063705,1730316632864,-3000.0,0.0002988,2]
[341063706,1730316632874,-5000.0,0.00029887,2]
[341063707,1730316632885,-3000.0,0.0002989,2]
[341063708,1730316632894,-3000.0,0.000299,2]
[341063709,1730316632904,-3000.0,0.0002991,2]
[341063710,1730316632913,-508.06,0.0002991,3]
[341063711,1730316632924,-3000.0,0.0002992,2]
[341063712,1730316632936,-847.85,0.00029923,10]
[341063713,1730316632947,-373.05,0.00029923,10]
[341063714,1730316632957,-3000.0,0.0002993,2]
[341063715,1730316632967,-2036.93668248,0.00029933,2]
[341063716,1730316632978,-501.4213754,0.00029933,5]
[341063717,1730316632987,-503.9927717,0.00029933,5]
[341063718,1730316632997,-3000.0,0.0002994,2]
[341063719,1730316633007,-500.0,0.00029949,2]
[341063720,1730316633017,-490.49372997,0.00029949,2]
[341063721,1730316633028,-180.54073625,0.00029949,2]
[341063722,1730316633039,-500.0,0.00029949,2]
[341063723,1730316633048,-500.0,0.00029949,2]
[341063724,1730316633058,-365.02976056,0.0002995,2]
[341063725,1730316633068,-500.0,0.0002995,5]
[341063726,1730316633079,-482.28026567,0.0002995,5]
[341063727,1730316633091,-500.0,0.0002995,5]
[341063728,1730316633101,-500.0,0.0002995,2]
[341063729,1730316633111,-500.0,0.0002995,5]
[341063730,1730316633120,-500.0,0.0002995,5]
[341063731,1730316633130,-3000.0,0.0002995,2]
[341063732,1730316633141,-4156.233914,0.0002996,2]
[341063733,1730316633151,-321.0,0.0003,2]
[341063734,1730316633162,-150.41,0.0003,2]
[341063735,1730316633173,-163.0,0.0003,2]
[341063736,1730316633183,-321.0,0.00030411,2]
[341063737,1730316633193,-1453.80918122,0.00030852,2]
[341063738,1730316633202,-321.0,0.00031644,2]
[341063739,1730316633212,-151.0,0.00031788,6]
[341063740,1730316633222,-153.0,0.00032466,2]
[341063741,1730316633231,-153.0,0.00032466,2]
[341063742,1730316633242,-153.0,0.00032466,2]
[341063743,1730316633252,-151.0,0.00032605,7]
[341063744,1730316633262,-176.0,0.0003285,120]
[341063745,1730316633272,-176.0,0.0003286,120]
[341063746,1730316633282,-176.23,0.0003286,120]
[341063747,1730316633292,-176.0,0.0003287,120]
[341063748,1730316633303,-150.5,0.0003287,120]
[341063749,1730316633314,-1500.0,0.00032876,2]
[341063750,1730316633325,-500.0,0.00032876,2]
[341063751,1730316633335,-187.027508,0.00032877,120]
[341063752,1730316633353,-192.98372855,0.00032877,2]
[341063753,1730316633363,-326.0,0.00033226,2]
[341063754,1730316633372,-189.274724,0.00033396,2]
[341063755,1730316633382,-151.0,0.00033422,7]
[341063756,1730316633391,-153.0,0.00033425,2]
[341063757,1730316633401,-153.0,0.00033425,2]
[341063758,1730316633410,-153.0,0.00033425,2]
[341063759,1730316633419,-153.0,0.00033425,2]
[341063760,1730316633428,-153.0,0.00033425,2]
[341063761,1730316633438,-153.0,0.00033425,2]
[341063762,1730316633447,-153.0,0.00033425,2]
[341063763,1730316633457,-153.0,0.00033425,2]
[341063764,1730316633467,-153.0,0.00033425,2]
[341063765,1730316633477,-153.0,0.00033425,2]
[341063766,1730316633486,-153.0,0.00033425,2]
[341063767,1730316633496,-153.0,0.00033425,2]
[341063768,1730316633505,-153.0,0.00033425,2]
[341063769,1730316633515,-153.0,0.00033425,2]
[341063770,1730316633525,-153.0,0.00033425,2]
[341063771,1730316633536,-500.0,0.00033545,5]
[341063772,1730316633546,-500.0,0.00033545,5]
[341063773,1730316633559,-500.69773175,0.00033545,5]
[341063774,1730316633573,-500.0,0.00033545,2]
[341063775,1730316633584,-500.0,0.00033545,5]
[341063776,1730316633595,-500.0,0.00033545,5]
[341063777,1730316633607,-500.07929953,0.00033545,5]
[341063778,1730316633617,-500.0,0.00033545,5]
[341063779,1730316633627,-500.0,0.00033545,5]
[341063780,1730316633736,-500.0,0.00033545,5]
[341063781,1730316633747,-550.56065706,0.00033545,5]
[341063782,1730316633758,-500.0,0.00033545,5]
[341063783,1730316633776,-197.89959442,0.00033545,5]
[341063784,1730316633802,-500.0,0.00033545,5]
[341063785,1730316633814,-160.0,0.00033549,3]
[341063786,1730316633824,-189.8575,0.00033826,2]
[341063787,1730316633833,-300.0,0.000339,9]
[341063788,1730316633844,-5000.0,0.00034,2]
[341063789,1730316633853,-328.02916627,0.00034,2]
[341063790,1730316633865,-4914.34324925,0.00034,15]
[341063797,1730316638784,-252.71615048,0.00029809,2]
[341063798,1730316638795,-500.0,0.00029949,2]
[341063799,1730316638806,-345.94308952,0.00029949,2]
[341063800,1730316638816,-500.0,0.00029949,2]
[341063801,1730316638828,-500.0,0.00029949,2]
[341063802,1730316638838,-500.0,0.00029949,2]
[341063803,1730316638850,-1822.65059075,0.00034,15]
[341063804,1730316638859,-152.74555402,0.00034034,7]
[341063805,1730316638869,-152.74555402,0.00034034,7]
[341063806,1730316638878,-152.74555402,0.00034034,7]
[341063807,1730316638887,-152.74555402,0.00034034,7]
[341063808,1730316638896,-152.74555402,0.00034034,7]
[341063809,1730316638905,-152.74555402,0.00034034,7]
[341063810,1730316638914,-152.74555402,0.00034034,7]
[341063811,1730316638923,-152.74555402,0.00034034,7]
[341063812,1730316638933,-152.74,0.00034034,7]
[341063813,1730316638942,-158.62038302,0.00034034,7]
[341063814,1730316638951,-158.62038302,0.00034034,7]
[341063815,1730316638960,-158.62038302,0.00034034,7]
[341063816,1730316638969,-158.62038302,0.00034034,7]
[341063817,1730316638978,-158.62038302,0.00034034,7]
[341063818,1730316638987,-158.62038302,0.00034034,7]
[341063819,1730316638996,-158.62038302,0.00034034,7]
[341063820,1730316639006,-158.62038302,0.00034034,7]
[341063821,1730316639015,-158.62038302,0.00034034,7]
[341063822,1730316639024,-158.62038302,0.00034034,7]
[341063823,1730316639034,-158.62038302,0.00034034,7]
[341063824,1730316639045,-158.62038302,0.00034034,7]
[341063825,1730316639054,-150.01,0.00034132,2]
[341063826,1730316639063,-5564.00512695,0.00034132,2]
[341063827,1730316639073,-309.29501109,0.00034133,2]
[341063828,1730316639083,-983.24,0.00034133,2]
[341063829,1730316639092,-983.24,0.00034133,2]
[341063830,1730316639106,-983.24,0.00034133,2]
[341063831,1730316639116,-983.24,0.00034133,2]
[341063832,1730316639125,-983.24,0.00034133,2]
[341063833,1730316639134,-500.0,0.00034133,7]
[341063834,1730316639144,-1000.0,0.00034133,2]
[341063835,1730316639154,-1000.0,0.00034133,2]
[341063836,1730316639163,-1000.0,0.00034133,2]
[341063837,1730316639173,-1000.0,0.00034133,2]
[341063838,1730316639184,-1000.0,0.00034133,2]
[341063839,1730316639194,-1000.0,0.00034133,2]
[341063840,1730316639203,-166.91273776,0.00034133,2]
[341063841,1730316639212,-27544.6392407,0.00034134,2]
[341063862,1730316720083,168.73351,0.00013973,2]
[341063863,1730316720319,168.73351,0.00020447,2]
[341063864,1730316908870,500.0,0.00034472,30]
[341063865,1730316969367,500.0,0.00034472,30]
[341063866,1730317018827,500.0,0.00034472,30]
[341063869,1730317029445,500.0,0.00034472,30]
[341063871,1730317059880,500.0,0.00034472,30]
[341063872,1730317195477,1000.0,0.00034475,30]
[341063873,1730317256207,1000.0,0.00034475,30]
[341063874,1730317286644,942.35,0.00034475,30]
[341063875,1730317303640,1000.0,0.00034475,30]
[341063876,1730317363352,169.199798,0.00013973,2]
[341063877,1730317363578,169.199798,0.00020447,2]
[341063878,1730317379075,2000.0,0.00034475,30]
[341063897,1730317471727,2000.0,0.00034481,30]
[341063900,1730317529841,2000.0,0.00034481,30]
[341063901,1730317535573,1193.17379,0.00034481,30]
[341063902,1730317535935,895.19356,0.00034481,30]
[341063903,1730317544125,-250.34825633,0.00024658,2]
[341063904,1730317544149,-166.666668,0.00026199,2]
[341063905,1730317544172,-167.46953,0.00026826,2]
[341063906,1730317544206,-169.199798,0.00026921,2]
[341063907,1730317544232,-166.336776,0.00026956,2]
[341063908,1730317544256,-167.46953,0.00026965,2]
[341063909,1730317544280,-228.599092,0.00027048,2]
[341063910,1730317544303,-167.46953,0.00027105,2]
[341063911,1730317544327,-167.46953,0.00027245,2]
[341063912,1730317544351,-167.46953,0.00027385,2]
[341063913,1730317544374,-300.0,0.00027444,2]
[341063914,1730317544396,-300.0,0.00027444,2]
[341063915,1730317544421,-15658.0670604,0.00027445,2]
[341063916,1730317544447,-167.46953,0.00027524,2]
[341063917,1730317544472,-167.46953,0.00027664,2]
[341063918,1730317544496,-228.599092,0.00027733,2]
[341063919,1730317544520,-167.46953,0.00027804,2]
[341063920,1730317544544,-167.46953,0.00027944,2]
[341063921,1730317544568,-167.46953,0.00028084,2]
[341063922,1730317544593,-167.46953,0.00028223,2]
[341063923,1730317544617,-228.599092,0.00028418,2]
[341063924,1730317544645,-509.36143998,0.00029,2]
[341063925,1730317544668,-24515.51,0.00029,5]
[341063926,1730317544691,-263.75072117,0.00029555,2]
[341063927,1730317544713,-232.12395288,0.00029555,2]
[341063928,1730317544738,-382.79563614,0.00029555,2]
[341063929,1730317544760,-500.0,0.00029555,2]
[341063930,1730317544783,-500.0,0.00029555,2]
[341063931,1730317544806,-500.0,0.00029555,2]
[341063932,1730317544828,-300.43820452,0.00029555,2]
[341063933,1730317544851,-5986.04752852,0.00029556,2]
[341063934,1730317544873,-420.0,0.00029656,2]
[341063935,1730317544895,-3000.0,0.000298,2]
[341063936,1730317544922,-500.0,0.000298,5]
[341063937,1730317544949,-500.0,0.000298,5]
[341063938,1730317544971,-500.0,0.000298,5]
[341063939,1730317544992,-160.03348088,0.000298,5]
[341063940,1730317545013,-450.14970871,0.000298,5]
[341063941,1730317545037,-500.0,0.000298,5]
[341063942,1730317545060,-500.0,0.000298,2]
[341063943,1730317545085,-500.0,0.000298,5]
[341063944,1730317545108,-500.0,0.000298,5]
[341063945,1730317545134,-5000.0,0.00029809,2]
[341063946,1730317545157,-3000.0,0.0002981,2]
[341063947,1730317545181,-177.157,0.0002982,24]
[341063948,1730317545203,-3000.0,0.0002982,2]
[341063949,1730317545227,-3000.0,0.0002983,2]
[341063950,1730317545250,-3000.0,0.0002984,2]
[341063951,1730317545273,-3000.0,0.0002985,2]
[341063952,1730317545425,-264.97281012,0.00029857,5]
[341063953,1730317545453,-5000.0,0.00029859,2]
[341063954,1730317545479,-3000.0,0.0002986,2]
[341063955,1730317545505,-3000.0,0.0002987,2]
[341063956,1730317545529,-3000.0,0.0002988,2]
[341063957,1730317545553,-420.48,0.00029889,3]
[341063958,1730317545575,-628.7,0.00029889,10]
[341063959,1730317545604,-3000.0,0.0002989,2]
[341063960,1730317545629,-5000.0,0.00029899,2]
[341063961,1730317545652,-3000.0,0.000299,2]
[341063962,1730317545674,-3000.0,0.0002991,2]
[341063963,1730317545696,-476.37851537,0.00029918,2]
[341063964,1730317545718,-405.76694089,0.00029918,2]
[341063965,1730317545742,-500.0,0.00029918,2]
[341063966,1730317545764,-500.0,0.00029918,2]
[341063967,1730317545786,-500.0,0.00029918,2]
[341063968,1730317545810,-500.0,0.00029918,2]
[341063969,1730317545833,-342.16016266,0.00029918,2]
[341063970,1730317545858,-2200.57019035,0.0002992,2]
[341063973,1730317628100,-368.76305187,0.00024558,2]
[341063976,1730317648126,-386.22260772,0.00029759,2]
[341063977,1730317755117,-192.94208789,0.00029759,2]
[341063978,1730317765097,-288.55123516,0.00029759,2]
[341064017,1730317832024,-166.336777,0.00028624,2]
[341064018,1730317832034,-5237.79158742,0.000299,2]
[341064019,1730317832043,-1525.2889833,0.00029908,2]
[341064030,1730317840061,-503.01188397,0.00029908,2]
[341064038,1730317840300,-311.66262977,0.00029908,2]
[341064048,1730317843131,-86.44080862,0.00029908,2]
[341064049,1730317844666,-2573.59569434,0.00029908,2]
[341064050,1730317844676,-300.0,0.00029919,2]
[341064051,1730317844687,-300.0,0.00029919,2]
[341064052,1730317844697,-799.42980965,0.0002992,2]
[341064053,1730317844706,-3000.0,0.0002993,2]
[341064054,1730317844716,-3000.0,0.0002994,2]
[341064055,1730317844726,-2879.74971345,0.0002995,2]
[341064079,1730317846069,-120.25028655,0.0002995,2]
[341064080,1730317846080,-5000.0,0.00029959,2]
[341064081,1730317846092,-3000.0,0.0002996,2]
[341064082,1730317846102,-3000.0,0.0002997,2]
[341064083,1730317846113,-3000.0,0.0002998,2]
[341064084,1730317846123,-3000.0,0.0002999,2]
[341064085,1730317846134,-151.0,0.0003,120]
[341064086,1730317846144,-946.86396474,0.0003,2]
[341064087,1730317846202,-42.91362308,0.0003,2]
[341064088,1730317904291,2000.0,0.00034478,30]
[341064091,1730318071291,-559.93548155,0.000297,2]
[341064092,1730318071316,-300.0,0.00029799,2]
[341064093,1730318071341,-300.0,0.00029799,2]
[341064094,1730318071365,-3000.0,0.000298,2]
[341064095,1730318071389,-5386.77583878,0.000298,2]
[341064096,1730318071413,-3000.0,0.0002981,2]
[341064097,1730318071436,-3000.0,0.0002982,2]
[341064098,1730318071460,-3000.0,0.0002983,2]
[341064099,1730318071483,-3000.0,0.0002984,2]
[341064100,1730318071506,-3000.0,0.0002985,2]
[341064101,1730318071529,-3000.0,0.0002986,2]
[341064102,1730318071557,-3000.0,0.0002987,2]
[341064103,1730318071580,-3000.0,0.0002988,2]
[341064104,1730318071603,-3000.0,0.0002989,2]
[341064105,1730318071625,-4290.301027,0.000299,2]
[341064106,1730318071650,-5000.0,0.00029958,2]
[341064107,1730318071677,-5000.0,0.00030008,2]
[341064108,1730318071699,-5000.0,0.00030069,2]
[341064109,1730318071754,200.04868939,0.00030007,2]
[341064110,1730318122769,485.73498032,0.00030007,7]
[341064111,1730318238250,500.0,0.0003006,2]
[341064112,1730318252288,500.0,0.0003006,2]
[341064113,1730318258532,500.0,0.0003006,2]
[341064114,1730318270527,500.0,0.0003006,2]
[341064115,1730318271371,500.0,0.0003006,2]
[341064116,1730318272291,500.0,0.0003006,2]
[341064118,1730318426040,323.82332021,0.0003006,7]
[341064120,1730318473811,153.38066275,0.00013973,2]
[341064121,1730318473841,30.17749225,0.00013973,2]
[341064122,1730318474049,183.558155,0.00020447,2]
[341064123,1730318757130,-183.558155,0.00026921,2]
[341064124,1730318757156,-86.81206426,0.00029819,2]
[341064127,1730318969718,-151.7951676,0.00029759,2]
[341064128,1730318970096,-156.092,0.0002999,30]
[341064129,1730318970116,-184.0,0.0003,2]
[341064130,1730318970137,-150.0,0.0003,2]
[341064131,1730318970158,-400.0,0.00030239,2]
[341064132,1730318970178,-400.0,0.00030239,2]
[341064133,1730318970198,-5799.9311242,0.00030401,2]
[341064177,1730319032221,-156.111,0.0003079,3]
[341064179,1730319032231,-307.0,0.00030974,2]
[341064181,1730319032240,-230.0,0.00030974,2]
[341064183,1730319032250,-1397.6763263,0.00030975,2]
[341064184,1730319032263,-9706.95666296,0.00030975,2]
[341064185,1730319032276,-13567.13535634,0.00030975,2]
[341064186,1730319032285,-790.69349036,0.00030975,2]
[341064187,1730319032297,-504.79135082,0.00031,5]
[341064188,1730319032306,-500.0,0.00031,2]
[341064189,1730319032315,-500.0,0.00031,5]
[341064190,1730319032325,-500.0,0.00031,5]
[341064191,1730319032335,-156.093,0.0003159,7]
[341064192,1730319032346,-191.75532486,0.000316,2]
[341064193,1730319032355,-151.0,0.00031753,120]
[341064194,1730319032364,-3503.61081914,0.000321,2]
[341064212,1730319043192,-754.14663878,0.000321,2]
[341064213,1730319043203,-817.70336129,0.0003229,2]
[341064219,1730319046353,-2798.869392,0.0003229,2]
[341064220,1730319046366,-1096.85610559,0.0003229,2]
[341064221,1730319046377,-156.114,0.0003239,15]
[341064222,1730319046387,-200.0,0.000327,28]
[341064223,1730319046397,-500.0,0.00032876,2]
[341064224,1730319046407,-156.029,0.00033,2]
[341064225,1730319046417,-156.107,0.0003319,9]
[341064226,1730319046427,-183.558155,0.00033396,2]
[341064227,1730319046437,-215.88221348,0.00033425,7]
[341064228,1730319046447,-248.895447,0.00033425,2]
[341064229,1730319046456,-153.0,0.00033425,2]
[341064230,1730319046467,-153.0,0.00033425,2]
[341064231,1730319046477,-302.8704018,0.00033425,2]
[341064232,1730319046487,-302.8704018,0.00033425,2]
[341064233,1730319046497,-302.8704018,0.00033425,2]
[341064234,1730319046507,-302.8704018,0.00033425,2]
[341064235,1730319046517,-151.0,0.00033507,120]
[341064236,1730319046526,-150.112233,0.000336,11]
[341064237,1730319046536,-160.0,0.00033648,3]
[341064238,1730319046546,-4713.42885887,0.00033663,2]
[341064239,1730319046559,-234.56,0.00033848,3]
[341064240,1730319046569,-50713.94574908,0.00033858,2]
[341064241,1730319046579,-156.073,0.0003399,3]
[341064242,1730319046589,-150.112233,0.00034,18]
[341064243,1730319046598,-217.57550746,0.00034004,2]
[341064244,1730319046608,-1000.0,0.00034007,2]
[341064245,1730319046617,-210.9345793,0.00034008,2]
[341064246,1730319046626,-210.9345793,0.00034008,2]
[341064247,1730319046637,-210.9345793,0.00034008,2]
[341064248,1730319046647,-210.9345793,0.00034008,2]
[341064249,1730319046656,-210.9345793,0.00034008,2]
[341064250,1730319046666,-210.9345793,0.00034008,2]
[341064251,1730319046675,-210.9345793,0.00034008,2]
[341064252,1730319046685,-217.57550743,0.00034012,2]
[341064253,1730319046695,-217.57550743,0.0003402,2]
[341064254,1730319046707,-217.57550743,0.00034027,2]
[341064255,1730319046716,-333.46496076,0.00034033,7]
[341064256,1730319046726,-500.0,0.00034033,7]
[341064257,1730319046735,-209.46580244,0.00034033,7]
[341064258,1730319046745,-284.03685862,0.00034033,7]
[341064259,1730319046755,-500.0,0.00034033,7]
[341064260,1730319046765,-639.51211386,0.00034033,7]
[341064261,1730319046775,-1000.0,0.00034034,2]
[341064262,1730319046784,-19820.44218301,0.00034034,2]
[341064263,1730319046797,-7230.72566555,0.00034034,2]
[341064264,1730319099615,163.162804,0.00013973,2]
[341064265,1730319099925,163.162804,0.00021209,2]
[341064266,1730319100145,163.162804,0.00028445,2]
[341064267,1730319104634,685.5,0.00034478,30]
[341064268,1730319257970,-151.0,0.0003,120]
[341064269,1730319291568,-500.0,0.00031,5]
[341064270,1730319291591,-500.0,0.00031,5]
[341064271,1730319779969,5000.0,0.00034479,30]
[341064275,1730319958142,-175.63636145,0.00031708,2]
[341064276,1730319958164,-151.0,0.00031808,120]
[341064277,1730319958189,-168.63446517,0.00032877,2]
[341064278,1730319958210,-200.47372168,0.00033,2]
[341064279,1730320037094,-6.52627832,0.00033,2]
[341064280,1730320037115,-207.0,0.00033151,2]
[341064281,1730320037138,-51.46975397,0.00033616,120]
[341064282,1730320052102,-99.53024603,0.00033616,120]
[341064283,1730320052133,-207.11898043,0.00033679,2]
[341064654,1730320110920,-553.31993099,0.0003,2]
[341064655,1730320114837,16283.68638824,0.000134,2]
[341064656,1730320114889,1292.29872772,0.000134,2]
[341064657,1730320115586,267.0696835,0.00014114,2]
[341064658,1730320119713,3009.78446676,0.00034479,30]
[341064659,1730320123580,-1746.68006901,0.00029,120]
[341064660,1730320125505,29716.10030483,0.00014,2]
[341064662,1730320129278,560.31539922,0.000149,2]
[341064663,1730320136122,163.162804,0.00013973,2]
[341064667,1730320145160,-574.65376751,0.00022,2]
[341064668,1730320145184,-163.162804,0.00022759,2]
[341064669,1730320145205,-300.0,0.00024999,2]
[341064670,1730320145226,-1548.48893871,0.00025,2]
[341064671,1730320150089,-99993.4878598,0.00025,2]
[341064673,1730320160092,-14366.94003428,0.00025,2]
[341064678,1730320170127,-1562.42645235,0.00025,2]
[341065080,1730320236139,-4267.17070846,0.00025,2]
[341065081,1730320236149,-526.9203991,0.00026,2]
[341065082,1730320236159,-8438.84664744,0.00029,120]
[341065083,1730320236169,-1080.88840762,0.0003,7]
[341065084,1730320236178,-163.162804,0.00031546,2]
[341065085,1730320236188,-247.57756273,0.00032,5]
[341065086,1730320236197,-306.0,0.00033186,2]
[341065087,1730320236208,-307.1154386,0.00033186,2]
[341065088,1730320236217,-210.9345793,0.0003368,2]
[341065089,1730320236226,-210.9345793,0.0003368,2]
[341065090,1730320236236,-210.9345793,0.0003368,2]
[341065091,1730320236245,-210.9345793,0.0003368,2]
[341065092,1730320236254,-210.5044795,0.0003368,2]
[341065093,1730320236265,-210.9345793,0.0003368,2]
[341065094,1730320236277,-210.9345793,0.0003368,2]
[341065095,1730320236286,-207.6388816,0.0003368,2]
[341065096,1730320236294,-153.0,0.00033734,2]
[341065097,1730320236304,-153.0,0.00033734,2]
[341065098,1730320236313,-153.0,0.00033734,2]
[341065099,1730320236323,-263.0846621,0.00033734,2]
[341065100,1730320236332,-189.858,0.00033845,2]
[341065101,1730320236341,-261.0,0.000339,9]
[341065102,1730320236351,-158.77864075,0.00033973,2]
[341065103,1730320236360,-158.77864073,0.00033998,2]
[341065104,1730320236371,-532.04627152,0.00034,5]
[341065105,1730320236476,-302.8704018,0.00034002,2]
[341065106,1730320236486,-210.9345793,0.00034008,2]
[341065107,1730320236496,-210.9345793,0.00034008,2]
[341065108,1730320236505,-210.9345793,0.00034008,2]
[341065109,1730320236515,-210.9345793,0.00034008,2]
[341065110,1730320236526,-210.9345793,0.00034008,2]
[341065111,1730320236536,-210.9345793,0.00034008,2]
[341065112,1730320236546,-210.9345793,0.00034008,2]
[341065113,1730320236556,-210.9345793,0.00034008,2]
[341065114,1730320236565,-210.9345793,0.00034008,2]
[341065115,1730320236575,-210.9345793,0.00034008,2]
[341065116,1730320236584,-210.9345793,0.00034008,2]
[341065117,1730320236594,-210.9345793,0.00034008,2]
[341065118,1730320236603,-210.9345793,0.00034008,2]
[341065119,1730320236612,-210.9345793,0.00034008,2]
[341065120,1730320236622,-210.9345793,0.00034008,2]
[341065121,1730320236631,-210.9345793,0.00034008,2]
[341065122,1730320236641,-210.9345793,0.00034008,2]
[341065123,1730320236650,-210.9345793,0.00034008,2]
[341065124,1730320236660,-421.8691586,0.00034008,2]
[341065125,1730320236670,-210.9345793,0.00034008,2]
[341065126,1730320236679,-210.9345793,0.00034008,2]
[341065127,1730320236689,-210.9345793,0.00034008,2]
[341065128,1730320236698,-210.9345793,0.00034008,2]
[341065129,1730320236707,-210.9345793,0.00034008,2]
[341065130,1730320236716,-210.9345793,0.00034008,2]
[341065131,1730320236726,-210.9345793,0.00034008,2]
[341065132,1730320236736,-210.9345793,0.00034008,2]
[341065133,1730320236746,-210.9345793,0.00034008,2]
[341065134,1730320236755,-209.9751259,0.00034008,2]
[341065135,1730320236764,-206.02,0.00034023,10]
[341065136,1730320236774,-206.02,0.00034023,10]
[341065137,1730320236784,-824.12,0.00034023,10]
[341065138,1730320236793,-158.77864073,0.00034023,2]
[341065139,1730320236803,-170.35,0.00034024,3]
[341065140,1730320236812,-511.09,0.00034024,3]
[341065141,1730320236822,-421.8029894,0.00034027,2]
[341065142,1730320236831,-233.42547253,0.00034032,7]